lending/lending_fUSD_20241229
["ID","MTS","AMOUNT","RATE_DAILY","PERIOD"]
[347115413,1735503073235,-1628.51,0.00019843,2]
[347115414,1735503073244,-500.0,0.00019843,2]
[347115415,1735503073255,-500.0,0.00019843,2]
[347115416,1735503073265,-609.65,0.00019843,2]
[347115417,1735503073275,-844.57,0.00019843,2]
[347115418,1735503073284,-500.0,0.00019843,2]
[347115419,1735503073294,-1819.23,0.00019843,2]
[347115420,1735503073303,-1000.4,0.00019843,2]
[347115421,1735503073312,-500.0,0.00019843,2]
[347115422,1735503073323,-3895.18,0.00019843,2]
[347115423,1735503073334,-500.0,0.00019843,2]
[347115424,1735503073343,-1046.25,0.00019843,2]
[347115425,1735503073353,-500.0,0.00019843,2]
[347115426,1735503073364,-501.01,0.00019843,2]
[347115427,1735503073374,-894.47,0.00019843,2]
[347115428,1735503073386,-500.0,0.00019843,2]
[347115429,1735503073396,-673.33,0.00019843,2]
[347115430,1735503073406,-631.12,0.00019843,2]
[347115431,1735503073415,-150.0,0.00019863,2]
[347115432,1735503073425,-1367.7,0.00019875,2]
[347115433,1735503073435,-3672.98245213,0.0001988,2]
[347115434,1735503073444,-181.53268624,0.0001988,2]
[347115435,1735503073454,-10605.24514378,0.00019886,2]
[347115436,1735503073463,-197.62451434,0.00019886,3]
[347115437,1735503073473,-874.0,0.00019887,2]
[347115438,1735503073482,-1037.43959293,0.0001991,2]
[347115439,1735503073492,-845.45,0.00019919,2]
[347115440,1735503073502,-1780.83,0.00019919,2]
[347115441,1735503073513,-525.17,0.00019919,2]
[347115442,1735503073522,-843.1,0.00019919,2]
[347115443,1735503073532,-654.57,0.00019919,2]
[347115444,1735503073542,-1099.79,0.00019919,2]
[347115445,1735503073552,-603.24,0.00019919,2]
[347115446,1735503073562,-608.79,0.00019919,2]
[347115447,1735503073571,-1529.19,0.00019919,2]
[347115448,1735503073583,-500.0,0.00019919,2]
[347115449,1735503073593,-773.37,0.0001992,2]
[347115450,1735503073604,-500.0,0.0001992,2]
[347115451,1735503073615,-860.07,0.0001992,2]
[347115452,1735503073624,-848.88,0.0001992,2]
[347115453,1735503073634,-26178.0,0.00019945,2]
[347115454,1735503073643,-42900.0,0.00019945,2]
[347115455,1735503073653,-250.0,0.0001997,2]
[347115456,1735503073663,-1367.7,0.00019972,2]
[347115457,1735503073672,-500.0,0.00019973,2]
[347115458,1735503073683,-581.0158844,0.00019973,2]
[347115459,1735503073693,-18249.8313234,0.00019976,2]
[347115460,1735503073703,-4000.9606657,0.00019976,2]
[347115461,1735503073712,-500.0,0.00019979,2]
[347115462,1735503073722,-1367.7,0.00019979,2]
[347115463,1735503073733,-1367.7,0.00019979,2]
[347115464,1735503073744,-1367.7,0.00019979,2]
[347115465,1735503073754,-1367.7,0.00019979,2]
[347115466,1735503073764,-1367.7,0.00019979,2]
[347115467,1735503073774,-1367.7,0.00019979,2]
[347115468,1735503073784,-1367.7,0.00019979,2]
[347115469,1735503073794,-1367.7,0.00019979,2]
[347115470,1735503073805,-1367.7,0.00019979,2]
[347115471,1735503073815,-1367.7,0.00019979,2]
[347115472,1735503073825,-1367.88,0.00019979,2]
[347115473,1735503073835,-1130214.91305142,0.0001998,2]
[347115474,1735503073844,-1000.0,0.0001998,2]
[347115475,1735503073854,-1000.0,0.0001998,2]
[347115476,1735503073864,-1000.0,0.0001998,2]
[347115477,1735503073873,-1000.0,0.0001998,2]
[347115478,1735503073883,-1000.0,0.0001998,2]
[347115479,1735503073893,-1000.0,0.0001998,2]
[347115480,1735503073902,-1000.0,0.0001998,2]
[347115481,1735503073913,-1000.0,0.0001998,2]
[347115482,1735503073923,-1000.0,0.0001998,2]
[347115483,1735503073932,-1000.0,0.0001998,2]
[347115484,1735503073942,-2664.34039,0.0001998,2]
[347115485,1735503073951,-151.28,0.00019981,2]
[347115486,1735503073961,-150.47,0.00019981,2]
[347115487,1735503073970,-436.65,0.00019981,2]
[347115488,1735503073980,-182.33,0.00019981,2]
[347115489,1735503073989,-436.65,0.00019981,2]
[347115490,1735503073999,-288.83,0.00019981,2]
[347115491,1735503074010,-3842.4001565,0.00019982,2]
[347115492,1735503074020,-740.82469144,0.00019982,2]
[347115493,1735503074030,-11649.4964651,0.00019982,2]
[347115494,1735503074040,-824.5497348,0.00019982,2]
[347115495,1735503074050,-14661.8547227,0.00019986,2]
[347115496,1735503074060,-4000.9606657,0.00019986,2]
[347115497,1735503074069,-3842.4001565,0.00019986,2]
[347115498,1735503074079,-9359.4083072,0.00019986,2]
[347115499,1735503074090,-824.5497348,0.00019986,2]
[347115500,1735503074100,-3733.21958708,0.0002,2]
[347115501,1735503074109,-15623.87248508,0.0002,2]
[347115502,1735503074119,-3865.55437957,0.0002,2]
[347115503,1735503074128,-216262.36546373,0.0002,7]
[347115504,1735503074137,-492938.69581889,0.0002,15]
[347115505,1735503074347,-338.74999889,0.0002,15]
[347115506,1735503074359,-394.999986,0.0002,15]
[347115507,1735503074388,-2052.08,0.00016281,2]
[347115508,1735503074397,-308.65409,0.00017179,2]
[347115509,1735503074409,-284.02591,0.00017179,2]
[347115510,1735503074419,-215.97409,0.0001765,2]
[347115511,1735503074572,-721.22,0.00016555,2]
[347115512,1735503074581,-1644.745,0.00016555,2]
[347115513,1735503074592,-407.335,0.00016555,2]
[347115514,1735503074601,-690.73,0.00016555,2]
[347115515,1735503074613,-721.22,0.00016829,2]
[347115516,1735503074623,-1106.66291125,0.00016829,2]
[347115517,1735503074643,-914.50809876,0.00016829,2]
[347115518,1735503074656,-30.90898999,0.00016829,2]
[347115519,1735503074666,-486.14101001,0.00016829,2]
[347115520,1735503074679,-204.58898999,0.00016829,2]
[347115521,1735503074688,-721.22,0.00017103,2]
[347115522,1735503074700,-592.68,0.00017453,2]
[347115523,1735503074711,-466.75591,0.0001765,2]
[347115524,1735503074721,-592.68,0.00017727,2]
[347115525,1735503074730,-682.73,0.00017924,2]
[347115526,1735503074741,-592.68,0.00018001,2]
[347115527,1735503074751,-625.9,0.00018002,2]
[347115528,1735503074762,-682.73,0.00018198,2]
[347115529,1735503074771,-625.9,0.00018276,2]
[347115530,1735503074782,-682.73,0.00018472,2]
[347115531,1735503074793,-625.9,0.0001855,2]
[347115532,1735503074803,-682.73,0.00018746,2]
[347115533,1735503074813,-5304.54,0.00018769,2]
[347115534,1735503074824,-682.73,0.0001902,2]
[347115535,1735503074835,-690.73,0.00019043,2]
[347115536,1735503074847,-5304.54,0.00019043,2]
[347115537,1735503074859,-682.73,0.00019294,2]
[347115538,1735503074869,-690.73,0.00019317,2]
[347115539,1735503074879,-690.73,0.00019591,2]
[347115540,1735503074888,-690.73,0.00019865,2]
[347115541,1735503074898,-9056.560755,0.0002,15]
[347115542,1735503074910,-87083.72790222,0.0002,15]
[347115543,1735503074920,-1390.11728745,0.0002,5]
[347115544,1735503074929,-1900.0,0.0002,30]
[347115545,1735503074939,-3167.32406712,0.0002,7]
[347115546,1735503074948,-4000.0,0.0002,2]
[347115547,1735503074958,-4000.0,0.0002,7]
[347115548,1735503074967,-4000.0,0.0002,7]
[347115549,1735503074977,-1800.0,0.0002,21]
[347115550,1735503074987,-187.9110386,0.0002,10]
[347115551,1735503074997,-6022.32510433,0.0002,60]
[347115552,1735503075007,-82450.62248234,0.0002,2]
[347115553,1735503075019,-556.43340503,0.0002,2]
[347115554,1735503075040,-1033.50681685,0.00017103,2]
[347115555,1735503075052,-1018.57318315,0.00017103,2]
[347115556,1735503075062,-220.93545647,0.00019317,2]
[347115557,1735503075080,-509.6,0.00016279,2]
[347115558,1735503075090,-3209.67464023,0.00019317,2]
[347115559,1735503075103,-1866.05,0.00019317,2]
[347115560,1735503075264,-7.8799033,0.00019317,2]
[347115561,1735503075274,-20405.29859315,0.0002,2]
[347115562,1735503075283,-16736.04707922,0.0002,2]
[347115563,1735503075299,-625.9,0.00018824,2]
[347115564,1735503075308,-1140.80000018,0.0002,2]
[347115565,1735503075319,-4126.13424394,0.0002,2]
[347115566,1735503075337,-495.00000005,0.00017103,2]
[347115567,1735503075349,-195.72999995,0.00017103,2]
[347115568,1735503075359,-6155.6888,0.0002,2]
[347115569,1735503075370,-401.04327963,0.0002,2]
[347115570,1735503075386,-682.73,0.00019568,2]
[347115571,1735503075395,-1243.65136811,0.0002,2]
[347115572,1735503075406,-196.63522892,0.0002,2]
[347115573,1735503075415,-325.46002108,0.0002,2]
[347115574,1735503075614,-255.80783742,0.00017377,2]
[347115575,1735503075625,-465.41216258,0.00017377,2]
[347115576,1735503075635,-2052.08,0.00017377,2]
[347115577,1735503075643,-690.73,0.00017377,2]
[347115578,1735503075653,-721.22,0.00017651,2]
[347115579,1735503075664,-2052.08,0.00017651,2]
[347115580,1735503075673,-690.73,0.00017651,2]
[347115581,1735503075683,-721.22,0.00017925,2]
[347115582,1735503075693,-2052.08,0.00017925,2]
[347115583,1735503075702,-690.73,0.00017925,2]
[347115584,1735503075711,-721.22,0.00018199,2]
[347115585,1735503075721,-2052.08,0.00018199,2]
[347115586,1735503075730,-592.68,0.00018275,2]
[347115587,1735503075738,-592.68,0.00018549,2]
[347115588,1735503075747,-592.68,0.00018823,2]
[347115589,1735503075756,-625.9,0.00019098,2]
[347115590,1735503075766,-625.9,0.00019372,2]
[347115591,1735503075775,-5304.54,0.00019591,2]
[347115592,1735503075784,-625.9,0.00019646,2]
[347115593,1735503075794,-682.73,0.00019842,2]
[347115594,1735503075803,-4385.95280528,0.00019865,2]
[347115595,1735503075822,-592.68,0.00019097,2]
[347115596,1735503075831,-918.58719472,0.00019865,2]
[347115597,1735503075841,-625.9,0.0001992,2]
[347115598,1735503075850,-1122.1979556,0.0002,2]
[347115599,1735503075861,-1715.0,0.0002,2]
[347115600,1735503075872,-1950.0,0.0002,2]
[347115601,1735503075883,-1947.848,0.0002,2]
[347115602,1735503075898,-690.73,0.00018199,2]
[347115603,1735503075906,-7533.9200002,0.0002,2]
[347115604,1735503075917,-360.20251,0.0002,2]
[347115605,1735503075928,-11227.20357243,0.0002,2]
[347115606,1735503075939,-3818.16794069,0.0002,2]
[347115607,1735503075948,-1651.45440807,0.0002,2]
[347115608,1735503075959,-28348.54559193,0.0002,2]
[347115609,1735503075968,-30000.0,0.0002,2]
[347115610,1735503075977,-3668.03639465,0.0002,2]
[347115611,1735503075988,-1320.05848825,0.0002,2]
[347115612,1735503076019,-721.22,0.00018473,2]
[347115613,1735503076029,-25011.9051171,0.0002,2]
[347115614,1735503076038,-2190.00297417,0.0002,2]
[347115615,1735503076048,-27475.000004,0.0002,2]
[347115616,1735503076307,-500.0,0.0001628,2]
[347115617,1735503076316,-496.32490086,0.00016357,2]
[347115618,1735503076327,-838.55288175,0.00016357,2]
[347115619,1735503076338,-274.03221739,0.00016357,2]
[347115620,1735503076348,-1608.91,0.00016631,2]
[347115621,1735503076358,-2052.08,0.00018473,2]
[347115622,1735503076369,-690.73,0.00018473,2]
[347115623,1735503076381,-721.22,0.00018747,2]
[347115624,1735503076391,-2052.08,0.00018747,2]
[347115625,1735503076401,-690.73,0.00018747,2]
[347115626,1735503076411,-721.22,0.00019021,2]
[347115627,1735503076420,-2052.08,0.00019021,2]
[347115628,1735503076429,-592.68,0.00019371,2]
[347115629,1735503076438,-592.68,0.00019645,2]
[347115630,1735503076448,-592.68,0.00019919,2]
[347115631,1735503076457,-334.99702183,0.0002,2]
[347115632,1735503076466,-30000.0,0.0002,2]
[347115633,1735503076475,-30000.0,0.0002,2]
[347115634,1735503076484,-30000.0,0.0002,2]
[347115635,1735503076493,-30000.0,0.0002,2]
[347115636,1735503076502,-30000.0,0.0002,2]
[347115637,1735503076512,-30000.0,0.0002,2]
[347115638,1735503076521,-8433.79943436,0.0002,30]
[347115639,1735503076530,-1199.05974381,0.0002,7]
[347115640,1735503076540,-16181.71717532,0.0002,5]
[347115641,1735503076549,-600.0,0.0002,5]
[347115642,1735503076559,-946.03531449,0.0002,10]
[347115643,1735503076571,-53.96468551,0.0002,10]
[347115644,1735503076582,-1000.0,0.0002,10]
[347115645,1735503076591,-1000.0,0.0002,10]
[347115646,1735503076602,-1000.0,0.0002,10]
[347115647,1735503076612,-1000.0,0.0002,10]
[347115648,1735503076621,-1000.0,0.0002,10]
[347115649,1735503076631,-1000.0,0.0002,10]
[347115650,1735503076640,-1000.0,0.0002,10]
[347115651,1735503076649,-1000.0,0.0002,10]
[347115652,1735503076658,-1000.0,0.0002,10]
[347115653,1735503076667,-1000.0,0.0002,10]
[347115654,1735503076676,-1000.0,0.0002,10]
[347115655,1735503076685,-1000.0,0.0002,10]
[347115656,1735503076694,-1000.0,0.0002,10]
[347115657,1735503076703,-1000.0,0.0002,10]
[347115658,1735503076713,-1000.0,0.0002,10]
[347115659,1735503076722,-1000.0,0.0002,10]
[347115660,1735503076731,-1000.0,0.0002,10]
[347115661,1735503076741,-1000.0,0.0002,10]
[347115662,1735503076750,-1000.0,0.0002,10]
[347115663,1735503076760,-1000.0,0.0002,10]
[347115664,1735503076770,-1000.0,0.0002,10]
[347115665,1735503076779,-1000.0,0.0002,10]
[347115666,1735503076788,-206.81,0.0002,10]
[347115667,1735503076797,-512.4495211,0.0002,2]
[347115668,1735503076807,-4133.62525896,0.0002,2]
[347115669,1735503076818,-866.37474104,0.0002,2]
[347115670,1735503076827,-1089.53701328,0.0002,10]
[347115671,1735503076838,-124.8620008,0.0002,10]
[347115672,1735503076848,-12532.46973317,0.0002,2]
[347115673,1735503076859,-7391.51999648,0.0002,2]
[347115674,1735503076870,-4366.0,0.0002,2]
[347115675,1735503076891,-690.73,0.00019021,2]
[347115676,1735503076901,-31434.36595127,0.0002,2]
[347115677,1735503076912,-1065.83165509,0.0002,2]
[347115678,1735503076923,-7135.33536098,0.0002,2]
[347115679,1735503076932,-237.0,0.0002,2]
[347115680,1735503076941,-150.0,0.0002,2]
[347115681,1735503076951,-237.0,0.0002,2]
[347115682,1735503076960,-650.0,0.0002,2]
[347115683,1735503076969,-334.48588401,0.0002,2]
[347115684,1735503076981,-1665.51411599,0.0002,2]
[347115685,1735503076990,-121.78843798,0.0002,2]
[347115686,1735503077001,-1235.811747,0.0002,2]
[347115687,1735503077014,-642.39981502,0.0002,2]
[347115688,1735503077023,-428.45619498,0.0002,2]
[347115689,1735503077034,-1571.54380502,0.0002,2]
[347115690,1735503077043,-6117.66,0.0002,2]
[347115691,1735503077053,-18704.91209894,0.0002,6]
[347115692,1735503077062,-1000.0,0.0002,2]
[347115693,1735503077071,-158.0,0.0002,2]
[347115694,1735503077080,-158.0,0.0002,2]
[347115695,1735503077090,-158.0,0.0002,2]
[347115696,1735503077099,-151.0,0.0002,2]
[347115697,1735503077108,-151.0,0.0002,2]
[347115698,1735503077118,-150.0,0.0002,2]
[347115699,1735503077127,-873.0,0.0002,2]
[347115700,1735503077136,-582.0,0.0002,2]
[347115701,1735503077145,-151.0,0.0002,2]
[347115702,1735503077155,-575.418,0.0002,2]
[347115703,1735503077164,-575.418,0.0002,2]
[347115704,1735503077174,-575.418,0.0002,2]
[347115705,1735503077187,-575.418,0.0002,2]
[347115706,1735503077197,-575.418,0.0002,2]
[347115707,1735503077206,-575.418,0.0002,2]
[347115708,1735503077216,-575.418,0.0002,2]
[347115709,1735503077226,-575.418,0.0002,2]
[347115710,1735503077236,-575.418,0.0002,2]
[347115711,1735503077245,-575.418,0.0002,2]
[347115712,1735503077255,-1000.0,0.0002,2]
[347115713,1735503077265,-10000.0,0.0002,2]
[347115714,1735503077275,-3120.176937,0.0002001,2]
[347115715,1735503077288,-3120.176937,0.0002001,2]
[347115716,1735503077297,-2000.0,0.0002001,2]
[347115717,1735503077306,-3936.274252,0.0002002,2]
[347115718,1735503077315,-166.58,0.00020091,2]
[347115719,1735503077325,-536.24,0.00020116,2]
[347115720,1735503077334,-500.0,0.00020116,2]
[347115721,1735503077344,-542.93,0.00020116,2]
[347115722,1735503077354,-500.0,0.00020116,2]
[347115723,1735503077364,-500.0,0.00020116,2]
[347115724,1735503077374,-667.24,0.00020116,2]
[347115725,1735503077383,-1151.13,0.00020116,2]
[347115726,1735503077393,-500.23,0.00020116,2]
[347115727,1735503077403,-1940.6,0.00020116,2]
[347115728,1735503077413,-500.0,0.00020116,2]
[347115729,1735503077423,-500.0,0.00020116,2]
[347115730,1735503077433,-500.0,0.00020116,2]
[347115731,1735503077442,-500.0,0.00020116,2]
[347115732,1735503077452,-500.0,0.00020116,2]
[347115733,1735503077462,-629.96,0.00020116,2]
[347115734,1735503077471,-1169.28,0.00020116,2]
[347115735,1735503077480,-942.62,0.00020116,2]
[347115736,1735503077489,-888.62,0.00020116,2]
[347115737,1735503077499,-500.0,0.00020116,2]
[347115738,1735503077509,-5874.67,0.00020116,2]
[347115739,1735503077518,-682.73,0.00020116,2]
[347115740,1735503077528,-615.49,0.00020117,2]
[347115741,1735503077537,-500.0,0.00020117,2]
[347115742,1735503077546,-1103.62,0.00020117,2]
[347115743,1735503077555,-1960.19,0.00020117,2]
[347115744,1735503077564,-1628.51,0.00020117,2]
[347115745,1735503077573,-474.04,0.00020117,2]
[347115746,1735503077582,-500.0,0.00020117,2]
[347115747,1735503077591,-609.65,0.00020117,2]
[347115748,1735503077600,-844.57,0.00020117,2]
[347115749,1735503077610,-500.0,0.00020117,2]
[347115750,1735503077620,-1819.23,0.00020117,2]
[347115751,1735503077629,-1000.4,0.00020117,2]
[347115752,1735503077638,-500.0,0.00020117,2]
[347115753,1735503077647,-3895.18,0.00020117,2]
[347115754,1735503077657,-500.0,0.00020117,2]
[347115755,1735503077667,-1046.25,0.00020117,2]
[347115756,1735503077676,-500.0,0.00020117,2]
[347115757,1735503077685,-501.01,0.00020117,2]
[347115758,1735503077694,-894.47,0.00020117,2]
[347115759,1735503077703,-500.0,0.00020117,2]
[347115760,1735503077712,-673.33,0.00020117,2]
[347115761,1735503077721,-631.12,0.00020117,2]
[347115762,1735503077731,-1000.0,0.00020129,2]
[347115763,1735503077741,-150.0,0.00020136,2]
[347115764,1735503077749,-690.73,0.00020139,2]
[347115765,1735503077759,-5304.54,0.00020139,2]
[347115766,1735503077768,-150.0,0.00020187,2]
[347115767,1735503077778,-845.45,0.00020193,2]
[347115768,1735503077788,-1780.83,0.00020193,2]
[347115769,1735503077798,-525.17,0.00020193,2]
[347115770,1735503077809,-843.1,0.00020193,2]
[347115771,1735503077818,-654.57,0.00020193,2]
[347115772,1735503077828,-1099.79,0.00020193,2]
[347115773,1735503077837,-603.24,0.00020193,2]
[347115774,1735503077846,-608.79,0.00020193,2]
[347115775,1735503077855,-1529.19,0.00020193,2]
[347115776,1735503077864,-500.0,0.00020193,2]
[347115777,1735503077873,-773.37,0.00020194,2]
[347115778,1735503077882,-500.0,0.00020194,2]
[347115779,1735503077892,-860.07,0.00020194,2]
[347115780,1735503077901,-848.88,0.00020194,2]
[347115781,1735503077910,-625.9,0.00020194,2]
[347115782,1735503077919,-1000.0,0.000202,2]
[347115783,1735503077928,-500.0,0.00020253,2]
[347115784,1735503077937,-500.0,0.00020273,2]
[347115785,1735503077947,-150.0,0.00020273,2]
[347115786,1735503077956,-150.0,0.00020274,2]
[347115787,1735503077965,-873.0,0.00020274,2]
[347115788,1735503077974,-582.0,0.00020274,2]
[347115789,1735503077983,-150.0,0.00020274,2]
[347115790,1735503077992,-377.28,0.00020279,2]
[347115791,1735503078001,-172206.45035106,0.000203,2]
[347115792,1735503078011,-500.0,0.0002039,2]
[347115793,1735503078021,-500.0,0.0002039,2]
[347115794,1735503078031,-433.07,0.0002039,2]
[347115795,1735503078041,-667.24,0.0002039,2]
[347115796,1735503078050,-1151.13,0.0002039,2]
[347115797,1735503078059,-500.23,0.0002039,2]
[347115798,1735503078068,-1940.6,0.0002039,2]
[347115799,1735503078077,-490.36,0.0002039,2]
[347115800,1735503078087,-500.0,0.0002039,2]
[347115801,1735503078097,-500.0,0.0002039,2]
[347115802,1735503078106,-500.0,0.0002039,2]
[347115803,1735503078117,-500.0,0.0002039,2]
[347115804,1735503078127,-629.96,0.0002039,2]
[347115805,1735503078136,-1169.28,0.0002039,2]
[347115806,1735503078146,-942.62,0.0002039,2]
[347115807,1735503078155,-888.62,0.0002039,2]
[347115808,1735503078164,-500.0,0.0002039,2]
[347115809,1735503078174,-5874.67,0.0002039,2]
[347115810,1735503078186,-682.73,0.0002039,2]
[347115811,1735503078195,-500.0,0.00020391,2]
[347115812,1735503078205,-1103.62,0.00020391,2]
[347115813,1735503078214,-1960.19,0.00020391,2]
[347115814,1735503078224,-1628.51,0.00020391,2]
[347115815,1735503078234,-500.0,0.00020391,2]
[347115816,1735503078243,-609.65,0.00020391,2]
[347115817,1735503078253,-844.57,0.00020391,2]
[347115818,1735503078264,-500.0,0.00020391,2]
[347115819,1735503078274,-1819.23,0.00020391,2]
[347115820,1735503078283,-1000.4,0.00020391,2]
[347115821,1735503078293,-500.0,0.00020391,2]
[347115822,1735503078448,-3895.18,0.00020391,2]
[347115823,1735503078459,-500.0,0.00020391,2]
[347115824,1735503078468,-1046.25,0.00020391,2]
[347115825,1735503078478,-500.0,0.00020391,2]
[347115826,1735503078487,-501.01,0.00020391,2]
[347115827,1735503078496,-894.47,0.00020391,2]
[347115828,1735503078505,-500.0,0.00020391,2]
[347115829,1735503078515,-673.33,0.00020391,2]
[347115830,1735503078524,-631.12,0.00020391,2]
[347115831,1735503078534,-1000.0,0.000204,2]
[347115832,1735503078544,-1000.0,0.00020408,2]
[347115833,1735503078553,-150.0,0.0002041,2]
[347115834,1735503078563,-690.73,0.00020413,2]
[347115835,1735503078572,-5304.54,0.00020413,2]
[347115836,1735503078582,-845.45,0.00020467,2]
[347115837,1735503078592,-1780.83,0.00020467,2]
[347115838,1735503078602,-525.17,0.00020467,2]
[347115839,1735503078611,-843.1,0.00020467,2]
[347115840,1735503078621,-654.57,0.00020467,2]
[347115841,1735503078631,-1099.79,0.00020467,2]
[347115842,1735503078641,-603.24,0.00020467,2]
[347115843,1735503078650,-608.79,0.00020467,2]
[347115844,1735503078660,-1529.19,0.00020467,2]
[347115845,1735503078670,-500.0,0.00020467,2]
[347115846,1735503078679,-773.37,0.00020468,2]
[347115847,1735503078689,-500.0,0.00020468,2]
[347115848,1735503078698,-860.07,0.00020468,2]
[347115849,1735503078708,-848.88,0.00020468,2]
[347115850,1735503078717,-625.9,0.00020468,2]
[347115851,1735503078727,-300.0,0.000205,4]
[347115852,1735503078737,-301.70154504,0.00020521,2]
[347115853,1735503078747,-500.0,0.00020527,2]
[347115854,1735503078756,-500.0,0.00020547,2]
[347115855,1735503078766,-150.0,0.00020547,2]
[347115856,1735503078775,-177.27,0.00020548,2]
[347115857,1735503078785,-240.22247162,0.00020548,2]
[347115858,1735503078795,-873.0,0.00020548,2]
[347115859,1735503078804,-582.0,0.00020548,2]
[347115860,1735503078814,-204.625375,0.00020548,2]
[347115861,1735503078824,-20413.28,0.00020548,2]
[347115862,1735503078833,-500.0,0.00020664,2]
[347115863,1735503078843,-345.88,0.00020664,2]
[347115864,1735503078853,-667.24,0.00020664,2]
[347115865,1735503078863,-1151.13,0.00020664,2]
[347115866,1735503078872,-327.86547554,0.00020664,2]
[347115867,1735503078887,-172.36452446,0.00020664,2]
[347115868,1735503078897,-1940.6,0.00020664,2]
[347115869,1735503078906,-500.0,0.00020664,2]
[347115870,1735503078916,-500.0,0.00020664,2]
[347115871,1735503078926,-179.11,0.00020664,2]
[347115872,1735503078935,-500.0,0.00020664,2]
[347115873,1735503078945,-629.96,0.00020664,2]
[347115874,1735503078954,-1169.28,0.00020664,2]
[347115875,1735503078964,-942.62,0.00020664,2]
[347115876,1735503078974,-888.62,0.00020664,2]
[347115877,1735503078983,-500.0,0.00020664,2]
[347115878,1735503078993,-3422.03767893,0.00020664,2]
[347115879,1735503079006,-1372.25022092,0.00020664,2]
[347115880,1735503079018,-1080.38210015,0.00020664,2]
[347115881,1735503079028,-682.73,0.00020664,2]
[347115882,1735503079037,-500.0,0.00020665,2]
[347115883,1735503079047,-1103.62,0.00020665,2]
[347115884,1735503079057,-1960.19,0.00020665,2]
[347115885,1735503079066,-1628.51,0.00020665,2]
[347115886,1735503079075,-500.0,0.00020665,2]
[347115887,1735503079089,-609.65,0.00020665,2]
[347115888,1735503079099,-844.57,0.00020665,2]
[347115889,1735503079109,-500.0,0.00020665,2]
[347115890,1735503079119,-1819.23,0.00020665,2]
[347115891,1735503079129,-1000.4,0.00020665,2]
[347115892,1735503079138,-500.0,0.00020665,2]
[347115893,1735503079148,-3895.18,0.00020665,2]
[347115894,1735503079158,-500.0,0.00020665,2]
[347115895,1735503079167,-1046.25,0.00020665,2]
[347115896,1735503079178,-500.0,0.00020665,2]
[347115897,1735503079191,-501.01,0.00020665,2]
[347115898,1735503079201,-894.47,0.00020665,2]
[347115899,1735503079211,-500.0,0.00020665,2]
[347115900,1735503079223,-673.33,0.00020665,2]
[347115901,1735503079232,-631.12,0.00020665,2]
[347115902,1735503079242,-150.0,0.00020684,2]
[347115903,1735503079252,-690.73,0.00020687,2]
[347115904,1735503079262,-5304.54,0.00020687,2]
[347115905,1735503079272,-1000.0,0.00020688,2]
[347115906,1735503079282,-150.0,0.00020692,2]
[347115907,1735503079292,-845.45,0.00020741,2]
[347115908,1735503079302,-1780.83,0.00020741,2]
[347115909,1735503079311,-525.17,0.00020741,2]
[347115910,1735503079321,-843.1,0.00020741,2]
[347115911,1735503079330,-654.57,0.00020741,2]
[347115912,1735503079340,-1099.79,0.00020741,2]